bitfinex/quotes_BTCUSD_20240717
["timestamp","ask_amount","ask_price","bid_price","bid_amount"]
[1721232117805,0.154342,64792.0,64786.0,0.154354]
[1721232118058,0.154337,64793.0,64787.0,0.154351]
[1721232118280,0.002794,64792.0,64786.0,0.308705]
[1721232118540,0.1,64793.0,64787.0,0.308703]
[1721232118766,0.1427,64794.0,64790.0,0.154343]
[1721232118994,0.002794,64793.0,64792.0,0.154339]
[1721232119221,0.1427,64794.0,64792.0,0.154339]
[1721232119484,0.1427,64794.0,64791.0,0.154342]
[1721232120227,0.308643,64800.0,64799.0,0.154323]
[1721232120228,0.0624,64800.0,64799.0,0.154323]
[1721232120459,0.157097,64808.0,64792.0,0.16738174]
[1721232120460,0.1397,64806.0,64792.0,0.16738174]
[1721232120772,0.1397,64806.0,64804.0,0.154311]
[1721232120773,0.002794,64805.0,64804.0,0.154311]
[1721232121003,0.1397,64806.0,64805.0,0.154309]
[1721232121004,0.0773,64806.0,64805.0,0.154309]
[1721232121240,0.0624,64811.0,64809.0,0.154298]
[1721232121469,0.0624,64811.0,64805.0,0.308618]
[1721232121470,0.002794,64810.0,64807.0,0.154302]
[1721232121742,0.0624,64811.0,64807.0,0.154302]
[1721232121973,0.0624,64811.0,64804.0,0.308622]
[1721232122219,0.0624,64811.0,64799.0,0.20938174]
[1721232122220,0.0824,64813.0,64811.0,0.154294]
[1721232122458,0.0824,64813.0,64805.0,0.17738174]
[1721232122459,0.0824,64813.0,64812.0,0.462876]
[1721232122692,0.4756,64820.0,64815.0,0.154284]
[1721232122693,0.0611,64819.0,64815.0,0.154284]
[1721232123410,0.0611,64819.0,64806.0,0.154304]
[1721232123411,0.154292,64812.0,64806.0,0.154304]
[1721232123639,0.38574279,64816.0,64804.0,0.154309]
[1721232123640,0.308577,64814.0,64804.0,0.154309]
[1721232123911,0.154297,64810.0,64805.0,0.154308]
[1721232124152,0.154295,64811.0,64805.0,0.159308]
[1721232124381,0.1,64815.0,64800.0,0.308637]
[1721232124382,0.002794,64810.0,64800.0,0.308637]
[1721232124663,0.002794,64810.0,64789.0,0.05]
[1721232124664,0.1474,64813.0,64788.0,0.0605]
[1721232124916,0.1474,64800.0,64793.0,0.308671]
[1721232125188,0.1474,64800.0,64793.0,0.154336]
[1721232125436,0.1474,64800.0,64794.0,0.154334]
[1721232125916,0.1474,64800.0,64792.0,0.308677]
[1721232126147,0.1474,64800.0,64796.0,0.154328]
[1721232126621,0.1474,64800.0,64797.0,0.154328]
[1721232127344,0.1451,64806.0,64799.0,0.308644]
[1721232127575,0.102794,64805.0,64802.0,0.154315]
[1721232127906,0.1,64805.0,64800.0,0.30864]
[1721232128089,0.04832153,64820.0,64800.0,0.30864]
[1721232128090,0.04832153,64820.0,64812.0,0.462876]
[1721232128091,0.1451,64813.0,64812.0,0.462876]
[1721232128341,0.0642,64818.0,64814.0,0.154285]
[1721232128576,0.0642,64818.0,64813.0,0.308576]
[1721232128577,0.0642,64818.0,64813.0,0.154289]
[1721232129062,0.0642,64818.0,64809.0,0.308598]
[1721232129307,0.157074,64817.0,64811.0,0.154294]
[1721232129557,0.154314,64803.0,64797.0,0.154327]
[1721232129816,0.07717479,64815.0,64800.0,0.308639]
[1721232130033,0.07717479,64815.0,64803.0,0.154312]
[1721232130034,0.154301,64809.0,64803.0,0.154312]
[1721232130282,0.17996879,64808.0,64800.0,0.308639]
[1721232130507,0.17996879,64808.0,64801.0,0.154317]
[1721232130508,0.154304,64807.0,64801.0,0.154317]
[1721232130744,0.002794,64806.0,64801.0,0.154317]
[1721232130979,0.1476,64805.0,64797.0,0.009]
[1721232131246,0.154316,64802.0,64797.0,0.009]
[1721232131488,0.07717479,64800.0,64783.0,0.308721]
[1721232131859,0.07717479,64800.0,64777.0,0.358749]
[1721232131860,0.154333,64795.0,64790.0,0.154344]
[1721232132104,0.154333,64795.0,64787.0,0.308702]
[1721232132105,0.154333,64795.0,64789.0,0.154346]
[1721232132401,0.308652,64798.0,64777.0,0.0635]
[1721232132402,0.308691,64790.0,64777.0,0.0635]
[1721232132641,0.308713,64786.0,64773.0,0.77181671]
[1721232132887,0.308712,64786.0,64783.0,0.005]
[1721232133128,0.463077,64784.0,64783.0,0.005]
[1721232133372,0.771795,64784.0,64783.0,0.005]
[1721232133885,0.458297,64789.0,64783.0,0.005]
[1721232134144,0.458297,64789.0,64775.0,0.308758]
[1721232134145,0.102794,64788.0,64778.0,0.154372]
[1721232134417,0.154361,64783.0,64777.0,0.154375]
[1721232134674,0.463083,64783.0,64774.0,0.001185]
[1721232134931,0.463083,64783.0,64775.0,0.154379]
[1721232135426,1.321027,64783.0,64774.0,0.001185]
[1721232135668,1.012305,64783.0,64782.0,0.011924]
[1721232135905,1.012305,64783.0,64782.0,0.017924]
[1721232136118,1.321027,64783.0,64782.0,0.017924]
[1721232137765,2.03126031,64783.0,64782.0,0.017924]
[1721232138306,1.56818874,64783.0,64782.0,0.017924]
[1721232138518,1.012305,64783.0,64782.0,0.017924]
[1721232138669,1.012305,64783.0,64782.0,0.000924]
[1721232138870,1.012305,64783.0,64782.0,0.004924]
[1721232139846,1.321027,64783.0,64782.0,0.004924]
[1721232140423,1.80967904,64783.0,64782.0,0.000924]
[1721232140601,1.78413074,64783.0,64782.0,0.000924]
[1721232140926,2.15371074,64783.0,64782.0,0.002924]
[1721232141332,2.15371074,64783.0,64782.0,0.003924]
[1721232141535,2.20171074,64783.0,64782.0,0.002924]
[1721232141693,2.15171074,64783.0,64782.0,0.002924]
[1721232141890,2.35606031,64783.0,64782.0,0.00285593]
[1721232142154,2.30906031,64783.0,64782.0,0.00085593]
[1721232142384,2.66778231,64783.0,64782.0,0.00085593]
[1721232142610,2.35906031,64783.0,64782.0,0.00185593]
[1721232142833,2.30906031,64783.0,64782.0,0.00185593]
[1721232143117,2.35906031,64783.0,64782.0,0.00185593]
[1721232143800,2.35906031,64783.0,64782.0,0.00085593]
[1721232144027,1.698185,64775.0,64774.0,0.001185]
[1721232144246,2.60852153,64775.0,64774.0,0.001185]
[1721232144463,2.58552153,64775.0,64774.0,0.001185]
[1721232144708,2.55852153,64775.0,64774.0,0.001185]
[1721232144942,2.53552153,64775.0,64774.0,0.001185]
[1721232145171,2.14958574,64775.0,64774.0,0.001185]
[1721232145424,2.30393531,64775.0,64774.0,0.001185]
[1721232145648,2.14958574,64775.0,64774.0,0.001185]
[1721232146723,0.463141,64775.0,64774.0,0.001185]
[1721232147105,0.002,64775.0,64774.0,0.001185]
[1721232147312,0.002,64775.0,64774.0,0.774097]
[1721232147473,0.002,64775.0,64774.0,0.465332]
[1721232147678,0.154364,64782.0,64775.0,0.15438]
[1721232147921,0.154369,64780.0,64774.0,0.002185]
[1721232148122,0.154369,64780.0,64774.0,0.160567]
[1721232148374,0.15438,64775.0,64774.0,0.006185]
[1721232148506,0.15438,64775.0,64774.0,0.007185]
[1721232148507,0.463141,64775.0,64774.0,0.007185]
[1721232148714,0.463141,64775.0,64774.0,0.003185]
[1721232148715,1.141263,64775.0,64774.0,0.003185]
[1721232149114,1.141263,64775.0,64774.0,0.001185]
[1721232149601,1.450024,64775.0,64774.0,0.001185]
[1721232149881,1.95153531,64775.0,64774.0,0.001185]
[1721232150124,2.00153531,64775.0,64774.0,0.001185]
[1721232150334,2.31029631,64775.0,64774.0,0.001185]
[1721232150583,2.33919631,64775.0,64774.0,0.001185]
[1721232151122,2.38919631,64775.0,64774.0,0.001185]
[1721232151336,0.772045,64763.0,64760.0,0.009185]
[1721232151544,1.55942729,64763.0,64760.0,0.009185]
[1721232151750,1.84602474,64763.0,64760.0,0.009185]
[1721232152570,2.34602474,64763.0,64760.0,0.009185]
[1721232153108,2.65484274,64763.0,64760.0,0.009185]
[1721232153741,2.65484274,64763.0,64762.0,0.001924]
[1721232153946,2.65284274,64763.0,64762.0,0.001924]
[1721232154159,2.85719231,64763.0,64762.0,0.001924]
[1721232154373,2.85719231,64763.0,64762.0,0.002924]
[1721232154374,2.86219231,64763.0,64762.0,0.002924]
[1721232154590,2.88519231,64763.0,64762.0,0.002924]
[1721232154828,3.19401031,64763.0,64762.0,0.002924]
[1721232155041,2.65799336,64763.0,64762.0,0.003924]
[1721232155249,2.61239231,64763.0,64762.0,0.003924]
[1721232155456,2.92121031,64763.0,64762.0,0.003924]
[1721232155659,2.96481136,64763.0,64762.0,0.002924]
[1721232156008,3.0057287,64763.0,64762.0,0.003924]
[1721232156213,2.96681136,64763.0,64762.0,0.003924]
[1721232156612,2.6969107,64763.0,64762.0,0.003924]
[1721232156814,2.65799336,64763.0,64762.0,0.003924]
[1721232157231,2.96681136,64763.0,64762.0,0.003924]
[1721232157434,2.92121031,64763.0,64762.0,0.003924]
[1721232158549,2.96681136,64763.0,64762.0,0.003924]
[1721232160457,1.979828,64761.0,64760.0,1e-06]
[1721232160685,2.41155931,64761.0,64760.0,1e-06]
[1721232161440,2.49621102,64761.0,64760.0,1e-06]
[1721232161944,2.80503802,64761.0,64760.0,1e-06]
[1721232162196,2.41355931,64761.0,64760.0,1e-06]
[1721232162457,1.32214,64755.0,64754.0,1e-06]
[1721232162730,2.11923253,64755.0,64754.0,1e-06]
[1721232163012,2.21923253,64755.0,64754.0,1e-06]
[1721232163260,2.83694453,64755.0,64754.0,1e-06]
[1721232164859,2.85094453,64755.0,64754.0,1e-06]
[1721232165103,1.532866,64744.0,64743.0,0.009196]
[1721232165359,2.15554774,64744.0,64743.0,0.009196]
[1721232165592,2.20554774,64744.0,64743.0,0.009196]
[1721232166327,2.51445574,64744.0,64743.0,0.009196]
[1721232166597,2.84836374,64744.0,64743.0,1e-06]
[1721232166891,2.62410745,64744.0,64743.0,1e-06]
[1721232167131,2.51205679,64744.0,64743.0,1e-06]
[1721232167391,1.97439945,64744.0,64743.0,0.001001]
[1721232167620,0.77427,64744.0,64743.0,1e-06]
[1721232168116,1.55546774,64744.0,64743.0,0.001001]
[1721232168358,1.090178,64744.0,64743.0,0.001001]
[1721232168613,0.009,64744.0,64743.0,0.143901]
[1721232168865,0.009,64744.0,64743.0,0.76165174]
[1721232169366,0.009,64744.0,64743.0,1.19881895]
[1721232169625,0.009,64744.0,64743.0,0.143901]
[1721232169888,0.009,64744.0,64743.0,0.60727]
[1721232170120,0.004,64744.0,64743.0,0.606269]
[1721232170345,0.004,64744.0,64743.0,0.611269]
[1721232170595,0.004,64744.0,64743.0,0.147901]
[1721232171067,0.005,64744.0,64743.0,0.160901]
[1721232171353,0.005,64744.0,64743.0,0.46973874]
[1721232171587,0.005,64744.0,64743.0,1.08756474]
[1721232171830,0.004,64744.0,64743.0,1.19781674]
[1721232172067,0.005,64744.0,64743.0,1.07656474]
[1721232172300,0.005,64744.0,64743.0,1.20481863]
[1721232172574,0.001,64744.0,64743.0,0.27815489]
[1721232172810,0.464362,64744.0,64743.0,0.149901]
[1721232173041,0.101,64744.0,64743.0,0.149901]
[1721232173282,0.254454,64744.0,64743.0,0.142901]
[1721232173517,0.87227,64744.0,64743.0,0.142901]
[1721232173807,0.87427,64744.0,64743.0,0.160901]
[1721232174036,1.183178,64744.0,64743.0,0.008001]
[1721232174277,1.183178,64744.0,64743.0,0.015001]
[1721232174278,1.184178,64744.0,64743.0,0.015001]
[1721232174515,1.183178,64744.0,64743.0,0.007001]
[1721232175264,1.181178,64744.0,64743.0,1e-06]
[1721232175504,1.64446774,64744.0,64743.0,1e-06]
[1721232176249,1.33555974,64744.0,64743.0,1e-06]
[1721232176479,1.80494774,64744.0,64743.0,1e-06]
[1721232176949,1.187178,64744.0,64743.0,0.008001]
[1721232177191,1.196178,64744.0,64743.0,0.009001]
[1721232177424,1.200178,64744.0,64743.0,0.009001]
[1721232178423,0.173454,64744.0,64743.0,0.009001]
[1721232178690,0.482362,64744.0,64743.0,0.149401]
[1721232179193,0.79127,64744.0,64743.0,0.069901]
[1721232179456,0.79127,64744.0,64743.0,0.009001]
[1721232179681,1.100178,64744.0,64743.0,0.009001]
[1721232180177,1.200178,64744.0,64743.0,0.009001]
[1721232180428,1.92317502,64744.0,64743.0,0.009001]
[1721232180662,2.23208302,64744.0,64743.0,0.009001]
[1721232181202,2.23208302,64744.0,64738.0,0.009185]
[1721232181203,1.390194,64739.0,64738.0,0.009185]
[1721232181472,2.32821574,64739.0,64738.0,0.009185]
[1721232181734,2.76014774,64739.0,64738.0,0.009185]
[1721232182004,2.91449731,64739.0,64738.0,0.009185]
[1721232182233,3.22342931,64739.0,64738.0,0.009185]
[1721232182466,3.2652127,64739.0,64738.0,0.009185]
[1721232182701,3.25684125,64739.0,64738.0,0.009185]
[1721232182931,2.75684125,64739.0,64738.0,0.009185]
[1721232183470,2.77084125,64739.0,64738.0,0.009185]
[1721232183711,2.75684125,64739.0,64738.0,0.009185]
[1721232184181,1.87399913,64739.0,64738.0,0.009185]
[1721232184386,1.44248374,64739.0,64738.0,0.009185]
[1721232184595,1.45648374,64739.0,64738.0,0.009185]
[1721232184807,1.216102,64739.0,64738.0,0.009185]
[1721232185018,1.188102,64739.0,64738.0,0.009185]
[1721232185443,1.174102,64739.0,64738.0,0.009185]
[1721232185857,0.09284,64750.0,64738.0,0.009185]
[1721232186066,0.168466,64739.0,64738.0,0.009185]
[1721232186276,0.168466,64739.0,64738.0,0.070785]
[1721232186491,0.014,64739.0,64738.0,0.304353]
[1721232186700,0.014,64739.0,64738.0,0.76767174]
[1721232186921,0.168466,64739.0,64738.0,0.27815835]
[1721232187134,0.028,64739.0,64738.0,0.89594509]
[1721232187351,0.014,64739.0,64738.0,0.89594509]
[1721232187594,0.014,64739.0,64738.0,1.20488209]
[1721232187809,0.14247479,64770.0,64738.0,1.20488209]
[1721232187810,0.154427,64756.0,64748.0,0.0616]
[1721232188022,0.308832,64761.0,64753.0,0.154431]
[1721232188023,0.154415,64761.0,64753.0,0.154431]
[1721232188234,0.00084,64774.0,64755.0,0.0791]
[1721232188235,0.308809,64765.0,64755.0,0.0791]
[1721232188448,0.308804,64766.0,64755.0,0.233528]
[1721232188656,0.154409,64763.0,64755.0,0.0791]
[1721232188916,0.09284,64769.0,64755.0,0.0791]
[1721232189138,0.154425,64756.0,64755.0,0.0791]
[1721232189341,0.23155653,64768.0,64755.0,0.0791]
[1721232189564,0.15442,64759.0,64755.0,0.0791]
[1721232189778,0.308799,64767.0,64754.0,0.0616]
[1721232189980,0.463284,64755.0,64754.0,0.0616]
[1721232190207,0.563284,64755.0,64754.0,0.0616]
[1721232190443,0.563284,64755.0,64747.0,0.0752]
[1721232190444,0.308881,64750.0,64749.0,0.064]
[1721232190655,0.463369,64743.0,64742.0,0.064]
[1721232190867,0.772282,64743.0,64742.0,0.064]
[1721232191073,0.772282,64743.0,64738.0,0.009185]
[1721232191074,0.463398,64739.0,64738.0,0.009185]
[1721232191282,0.77233,64739.0,64738.0,0.009185]
[1721232191499,1.181262,64739.0,64738.0,0.009185]
[1721232192952,0.563398,64739.0,64738.0,0.009185]
[1721232193160,0.87233,64739.0,64738.0,0.009185]
[1721232193362,1.181262,64739.0,64738.0,0.009185]
[1721232194445,1.181262,64739.0,64738.0,0.012185]
[1721232195328,1.181262,64739.0,64738.0,0.020185]
[1721232195329,1.86716761,64739.0,64738.0,0.020185]
[1721232195536,1.80392531,64739.0,64738.0,0.020185]
[1721232195746,1.64957574,64739.0,64738.0,0.012185]
[1721232196163,2.22495603,64739.0,64738.0,0.013185]
[1721232196374,2.31088491,64739.0,64738.0,0.013185]
[1721232196591,2.19714774,64739.0,64738.0,0.013185]
[1721232196844,2.45609377,64739.0,64738.0,0.013185]
[1721232197286,2.47909377,64739.0,64738.0,0.013185]
[1721232197511,2.42909377,64739.0,64738.0,0.013185]
[1721232198191,1.45765838,64739.0,64738.0,0.013185]
[1721232198414,1.43348374,64739.0,64738.0,0.013185]
[1721232198634,0.77733,64739.0,64738.0,0.013185]
[1721232199468,0.005,64739.0,64738.0,0.013185]
[1721232200292,0.005,64739.0,64738.0,0.322122]
[1721232200495,0.005,64739.0,64738.0,0.61749]
[1721232201120,0.005,64739.0,64738.0,0.308553]
[1721232201352,0.00084,64743.0,64738.0,0.151085]
[1721232201570,0.154464,64740.0,64738.0,0.150085]
[1721232201812,0.004,64739.0,64738.0,0.150085]
[1721232202031,1.081262,64739.0,64738.0,0.009185]
[1721232202465,1.33564374,64739.0,64738.0,0.009185]
[1721232202680,1.33664374,64739.0,64738.0,0.011185]
[1721232202908,0.564398,64739.0,64738.0,0.011185]
[1721232203125,0.101,64739.0,64738.0,0.011185]
[1721232203336,0.001,64739.0,64738.0,0.085185]
[1721232203540,0.001,64739.0,64738.0,0.239653]
[1721232204202,0.001,64739.0,64738.0,0.54859]
[1721232204457,0.001,64739.0,64738.0,0.62769]
[1721232204659,0.001,64740.0,64739.0,0.154466]
[1721232205319,0.001,64740.0,64739.0,0.463398]
[1721232205817,0.001,64740.0,64739.0,0.154466]
[1721232206045,0.00084,64743.0,64740.0,0.154463]
[1721232206280,0.00084,64743.0,64742.0,0.154459]
[1721232206521,0.00084,64743.0,64742.0,0.463377]
[1721232206777,0.00084,64743.0,64742.0,1.43028367]
[1721232207048,0.00084,64743.0,64742.0,1.45019474]
[1721232207480,0.0455057,64764.0,64760.0,0.1416]
[1721232207692,0.0910114,64768.0,64760.0,0.604845]
[1721232207693,0.154397,64768.0,64760.0,0.604845]
[1721232207915,0.002794,64767.0,64760.0,0.296014]
[1721232208168,0.00084,64774.0,64763.0,0.308816]
[1721232208397,0.00084,64774.0,64767.0,0.154399]
[1721232208814,0.00084,64774.0,64768.0,0.154395]
[1721232209029,0.00084,64774.0,64766.0,0.3088]
[1721232209238,0.00084,64774.0,64769.0,0.154392]
[1721232209509,0.00084,64774.0,64766.0,0.3088]
[1721232209510,0.00184,64774.0,64766.0,0.3088]
[1721232209772,0.00084,64774.0,64773.0,0.154385]
[1721232209980,0.00084,64774.0,64773.0,0.92630674]
[1721232210610,0.00084,64774.0,64773.0,1.23507674]
[1721232210812,0.00084,64774.0,64773.0,1.30017674]
[1721232211028,0.00184,64774.0,64773.0,1.30017674]
[1721232211450,0.002794,64791.0,64781.0,0.066]
[1721232211652,0.308637,64801.0,64787.0,0.154351]
[1721232211653,0.154333,64795.0,64787.0,0.154351]
[1721232212110,0.154333,64795.0,64782.0,0.23966865]
[1721232212111,0.154346,64790.0,64782.0,0.0822]
[1721232212350,0.154373,64778.0,64777.0,0.066]
[1721232212568,0.07717479,64783.0,64774.0,0.0771]
[1721232212569,0.308744,64779.0,64774.0,0.0771]
[1721232212772,0.07717479,64783.0,64774.0,0.0771]
[1721232212773,0.308733,64781.0,64774.0,0.0771]
[1721232213024,0.07717479,64783.0,64771.0,0.066]
[1721232213025,0.07717479,64776.0,64773.0,0.004]
[1721232213262,0.463147,64774.0,64773.0,0.004]
[1721232213466,1.080677,64774.0,64773.0,0.004]
[1721232213678,1.180677,64774.0,64773.0,0.004]
[1721232214104,1.41365874,64774.0,64773.0,0.004]
[1721232214326,1.41365874,64774.0,64758.0,0.46304871]
[1721232214327,0.154413,64762.0,64758.0,0.46304871]
[1721232214777,0.39868174,64774.0,64757.0,0.063]
[1721232214778,0.308785,64770.0,64757.0,0.063]
[1721232214987,0.1544,64767.0,64760.0,0.154415]
[1721232215216,0.254402,64766.0,64758.0,0.154419]
[1721232215430,0.154402,64766.0,64759.0,0.154417]
[1721232215658,0.154402,64766.0,64757.0,0.21738174]
[1721232215659,0.1,64765.0,64757.0,0.063]
[1721232215898,0.154421,64758.0,64757.0,0.063]
[1721232216138,0.1,64765.0,64757.0,0.217422]
[1721232216350,0.009794,64774.0,64764.0,0.154406]
[1721232216351,0.154388,64772.0,64764.0,0.154406]
[1721232216561,0.315766,64774.0,64765.0,0.154404]
[1721232216779,0.315766,64774.0,64763.0,0.308814]
[1721232216780,0.002794,64773.0,64763.0,0.308814]
[1721232216988,0.002794,64773.0,64766.0,0.1399]
[1721232217239,0.007,64774.0,64766.0,0.294301]
[1721232217459,0.308762,64775.0,64766.0,0.294301]
[1721232217460,0.154385,64773.0,64766.0,0.294301]
[1721232217878,0.308747,64778.0,64766.0,0.448702]
[1721232218091,0.002794,64777.0,64766.0,0.1399]
[1721232218298,0.154386,64773.0,64766.0,0.1399]
[1721232218519,0.17717479,64772.0,64766.0,0.1399]
[1721232218748,0.154395,64769.0,64766.0,0.1399]
[1721232219157,0.1,64772.0,64766.0,0.1399]
[1721232219363,0.1,64772.0,64766.0,0.1409]
[1721232219584,0.006,64777.0,64766.0,0.1409]
[1721232219585,0.006,64777.0,64767.0,0.15438174]
[1721232220261,0.006,64777.0,64766.0,0.1479]
[1721232220262,0.154391,64771.0,64766.0,0.1479]
[1721232220463,0.308799,64767.0,64759.0,0.0613]
[1721232220668,0.154416,64760.0,64759.0,0.0613]
[1721232221116,0.154413,64762.0,64759.0,0.0613]
[1721232221314,0.308791,64769.0,64759.0,0.0613]
[1721232221315,0.154409,64763.0,64759.0,0.0613]
[1721232221518,0.308791,64769.0,64759.0,0.0613]
[1721232221519,0.30879,64769.0,64760.0,0.154415]
[1721232221732,0.1544,64767.0,64760.0,0.154415]
[1721232221935,0.1,64768.0,64761.0,0.15438174]
[1721232222137,0.1,64768.0,64759.0,0.0613]
[1721232222138,0.308798,64768.0,64759.0,0.0613]
[1721232222358,0.308808,64766.0,64759.0,0.0613]
[1721232222558,0.308798,64768.0,64759.0,0.220718]
[1721232222559,0.001,64763.0,64759.0,0.220718]
[1721232222770,0.001,64763.0,64762.0,0.154411]
[1721232223212,0.001,64763.0,64760.0,0.16138174]
[1721232223427,0.001,64763.0,64762.0,0.154411]
[1721232223643,0.001,64763.0,64762.0,0.463234]
[1721232223890,0.001,64763.0,64762.0,0.154411]
[1721232224527,0.001,64766.0,64760.0,0.30879574]
[1721232224773,0.001,64766.0,64761.0,0.154413]
[1721232225012,0.154399,64767.0,64761.0,0.31379474]
[1721232225222,0.1,64768.0,64761.0,0.15438174]
[1721232225434,0.308775,64772.0,64761.0,0.15438174]
[1721232225435,0.154406,64765.0,64761.0,0.15438174]
[1721232225561,0.001,64763.0,64762.0,0.005]
[1721232225971,0.773045,64763.0,64762.0,0.005]
[1721232226177,0.773045,64763.0,64760.0,0.014]
[1721232226178,0.772067,64761.0,64760.0,0.014]
[1721232226416,0.308881,64750.0,64745.0,0.0779]
[1721232226622,0.463322,64750.0,64745.0,0.23228174]
[1721232226824,0.154447,64747.0,64745.0,0.23228174]
[1721232227026,0.17717479,64761.0,64745.0,0.0779]
[1721232227027,0.154449,64746.0,64745.0,0.0779]
[1721232227360,0.154452,64745.0,64744.0,0.0656]
[1721232227583,0.154448,64747.0,64744.0,0.0656]
[1721232227813,0.308891,64748.0,64744.0,0.0656]
[1721232227814,0.15445,64746.0,64744.0,0.0656]
[1721232227991,0.17717479,64761.0,64739.0,0.1421]
[1721232227992,0.308895,64747.0,64739.0,0.1421]
[1721232228130,0.002794,64746.0,64739.0,0.1421]
[1721232228337,0.308844,64758.0,64739.0,0.1421]
[1721232228338,0.154459,64742.0,64739.0,0.1421]
[1721232228770,0.154457,64743.0,64739.0,0.1421]
[1721232229148,0.1,64757.0,64742.0,0.308914]
[1721232229355,0.1,64757.0,64744.0,0.154453]
[1721232229561,0.1,64757.0,64743.0,0.15438174]
[1721232229562,0.308866,64753.0,64745.0,0.15438174]
[1721232229764,0.001,64746.0,64745.0,0.15438174]
[1721232230807,0.1,64757.0,64739.0,0.1421]
[1721232231029,0.07717479,64760.0,64739.0,0.1421]
[1721232231030,0.002794,64756.0,64740.0,0.15438174]
[1721232231241,0.308852,64756.0,64739.0,0.1421]
[1721232231454,0.154461,64741.0,64739.0,0.29648174]
[1721232231654,0.102794,64755.0,64739.0,0.29648174]
[1721232231655,0.1,64755.0,64739.0,0.29648174]
[1721232231972,0.1,64755.0,64738.0,0.009185]
[1721232231973,0.463398,64739.0,64738.0,0.009185]
[1721232232179,1.081262,64739.0,64738.0,0.009185]
[1721232232382,1.181262,64739.0,64738.0,0.009185]
[1721232232629,1.490194,64739.0,64738.0,0.009185]
[1721232233252,1.491194,64739.0,64738.0,0.016185]
[1721232233758,1.491194,64739.0,64738.0,0.020185]
[1721232234739,1.182262,64739.0,64738.0,0.020185]
[1721232235139,1.182262,64739.0,64738.0,0.016185]
[1721232235375,1.181262,64739.0,64738.0,0.009185]
[1721232235558,1.187262,64739.0,64738.0,0.009185]
[1721232235757,0.88133,64739.0,64738.0,0.009185]
[1721232236098,1.190262,64739.0,64738.0,0.009185]
[1721232236867,1.271162,64739.0,64738.0,0.009185]
[1721232237249,1.580094,64739.0,64738.0,0.009185]
[1721232237623,1.79997574,64739.0,64738.0,0.009185]
[1721232238925,1.89281574,64739.0,64738.0,0.009185]
[1721232239365,1.89281574,64739.0,64721.0,0.46304871]
[1721232239366,1.632164,64733.0,64721.0,0.46304871]
[1721232239523,2.75694253,64733.0,64721.0,0.46304871]
[1721232239727,2.7023311,64733.0,64721.0,0.46304871]
[1721232239903,2.62515631,64733.0,64721.0,0.46304871]
[1721232240107,2.47080674,64733.0,64721.0,0.46304871]
[1721232240389,1.88654574,64733.0,64717.0,0.009185]
[1721232240592,1.90054574,64733.0,64717.0,0.009185]
[1721232241033,1.88654574,64733.0,64717.0,0.009185]
[1721232242182,1.90054574,64733.0,64732.0,0.010185]
[1721232242592,0.886402,64733.0,64732.0,0.010185]
[1721232242796,0.15448,64733.0,64732.0,0.009185]
[1721232243041,0.002794,64744.0,64732.0,0.009185]
[1721232243256,0.0757,64749.0,64732.0,0.009185]
[1721232243257,0.154467,64739.0,64732.0,0.163666]
[1721232243462,0.308915,64743.0,64732.0,0.009185]
[1721232243463,0.014,64733.0,64732.0,0.009185]
[1721232243668,0.026,64733.0,64732.0,0.010185]
[1721232243901,0.026,64733.0,64732.0,0.074885]
[1721232244110,0.488441,64733.0,64732.0,0.011185]
[1721232244320,0.797402,64733.0,64732.0,0.011185]
[1721232244549,1.39980864,64733.0,64732.0,0.011185]
[1721232244767,1.78760964,64733.0,64732.0,0.011185]
[1721232244979,1.57864864,64733.0,64732.0,0.011185]
[1721232245184,1.57864864,64733.0,64732.0,0.012185]
[1721232245185,1.45458474,64733.0,64732.0,0.012185]
[1721232245811,1.42958474,64733.0,64732.0,0.010185]
[1721232246011,1.42958474,64733.0,64732.0,0.020185]
[1721232246012,1.73954574,64733.0,64732.0,0.020185]
[1721232246213,1.183363,64733.0,64732.0,0.020185]
[1721232246966,1.182363,64733.0,64732.0,0.019185]
[1721232247168,1.182363,64733.0,64732.0,0.009185]
[1721232247169,1.181363,64733.0,64732.0,0.009185]
[1721232247371,1.182363,64733.0,64732.0,0.009185]
[1721232247574,0.564441,64733.0,64732.0,0.009185]
[1721232248045,0.873402,64733.0,64732.0,0.009185]
[1721232249577,0.564441,64733.0,64732.0,0.009185]
[1721232249804,0.001,64733.0,64732.0,0.072485]
[1721232250007,0.001,64733.0,64732.0,0.226968]
[1721232250272,0.001,64733.0,64732.0,0.535934]
[1721232250507,0.001,64733.0,64732.0,0.69031574]
[1721232250706,0.001,64733.0,64732.0,0.74331574]
[1721232250918,0.001,64733.0,64732.0,1.05228174]
[1721232251163,0.4662,64754.0,64744.0,0.0643]
[1721232251164,0.002794,64753.0,64744.0,0.0643]
[1721232251366,0.4662,64754.0,64746.0,0.308895]
[1721232251367,0.154431,64754.0,64746.0,0.308895]
[1721232251577,0.30885,64757.0,64745.0,0.22985]
[1721232251578,0.154437,64752.0,64745.0,0.22985]
[1721232251803,0.154438,64751.0,64745.0,0.0754]
[1721232252220,0.308828,64761.0,64746.0,0.15747055]
[1721232252362,0.002794,64759.0,64746.0,0.15438174]
[1721232252559,0.38601079,64760.0,64746.0,0.15438174]
[1721232252560,0.07717479,64760.0,64746.0,0.15438174]
[1721232252965,0.154437,64752.0,64746.0,0.15438174]
[1721232253177,0.308854,64756.0,64745.0,0.0754]
[1721232253499,0.154452,64745.0,64744.0,0.0643]
[1721232253702,0.07717479,64746.0,64739.0,0.0628]
[1721232253907,0.154464,64740.0,64739.0,0.0628]
[1721232254330,0.463392,64740.0,64739.0,0.0628]